bitfinex-derivatives/quotes_ETHF0:USTF0_20210110
["timestamp","ask_amount","ask_price","bid_price","bid_amount"]
[1610241295039,1.8011,1309.3,1309.2,5.70981132]
[1610241295237,4.00959,1309.4,1309.2,5.70981132]
[1610241295440,4.00959,1309.4,1309.2,4.00959]
[1610241296239,4.00959,1309.4,1309.2,5.70962326]
[1610241297144,0.39981176,1309.6,1309.2,5.70962326]
[1610241297542,0.39981176,1309.6,1309.5,1.27311579]
[1610241298644,0.39981176,1309.6,1309.3,1.69641808]
[1610241298844,2.88871176,1309.6,1309.3,1.69641808]
[1610241299044,2.88871176,1309.6,1309.5,4.00959]
[1610241301045,2.88871176,1309.6,1309.5,5.70652892]
[1610241301245,2.88871176,1309.6,1309.5,35.70652892]
[1610241301645,2.88871176,1309.6,1309.5,34.00959]
[1610241301844,2.88871176,1309.6,1309.5,22.00959]
[1610241302049,2.88871176,1309.6,1309.5,24.12882202]
[1610241302247,2.88871176,1309.6,1309.5,2.11923202]
[1610241302647,2.88871176,1309.6,1309.5,24.12882202]
[1610241303045,0.39981176,1309.6,1309.5,28.55957627]
[1610241303444,0.39981176,1309.6,1309.5,26.01918]
[1610241303645,0.39981176,1309.6,1309.5,31.25265794]
[1610241303846,0.39981176,1309.6,1309.5,18.25265794]
[1610241305347,0.39981176,1309.6,1309.5,15.29528]
[1610241306348,0.39981176,1309.6,1309.5,4.00959]
[1610241306748,0.39981176,1309.6,1309.5,13.01918]
[1610241308551,0.39981176,1309.6,1309.5,17.73217491]
[1610241308752,0.39981176,1309.6,1309.5,14.78338]
[1610241309955,1.7642,1311.0,1309.5,15.01785694]
[1610241310153,1.7642,1311.0,1309.5,18.42285694]
[1610241310554,1.7642,1311.0,1310.8,1.09869943]
[1610241311154,1.7642,1311.0,1310.9,4.00959]
[1610241311556,0.39981176,1311.6,1310.9,4.00959]
[1610241311757,0.39981176,1311.6,1311.3,0.26023819]
[1610241312056,0.39981176,1311.6,1311.1,1.68031758]
[1610241312257,2.48011176,1311.6,1311.1,1.68031758]
[1610241313056,2.48011176,1311.6,1311.5,4.00959]
[1610241316768,2.48011176,1311.6,1311.5,13.01918]
[1610241317762,0.39981176,1311.6,1311.5,13.01918]
[1610241317963,0.39981176,1311.6,1311.5,4.00959]
[1610241318162,0.39981176,1311.6,1311.5,6.52084543]
[1610241318864,0.39981176,1311.6,1311.5,15.53043543]
[1610241319464,0.39981176,1311.6,1311.5,13.01918]
[1610241320264,0.39981176,1311.6,1311.5,4.00959]
[1610241321867,0.39981176,1311.6,1311.5,13.01918]
[1610241322868,0.39981176,1311.6,1311.5,15.94073524]
[1610241323068,0.39981176,1311.6,1311.5,13.01918]
[1610241323869,0.39981176,1311.6,1311.5,19.15618]
[1610241325672,0.39981176,1311.6,1311.5,19.39033731]
[1610241326972,0.39981176,1311.6,1311.5,22.72130369]
[1610241327978,0.39981176,1311.6,1311.5,19.39033731]
[1610241328678,2.433,1313.8,1311.5,19.39033731]
[1610241328877,2.433,1313.8,1312.4,62.7631]
[1610241329177,2.433,1313.8,1313.7,3.00959]
[1610241329579,2.433,1313.8,1313.7,4.66520909]
[1610241330680,2.433,1313.8,1313.7,3.00959]
[1610241331983,4.00959,1314.9,1313.7,54.54539]
[1610241332781,4.00959,1314.9,1314.7,0.03298402]
[1610241333184,4.00959,1314.9,1314.8,4.00959]
[1610241333583,4.00959,1314.9,1313.7,2.06443313]
[1610241333782,6.50589,1314.9,1313.7,2.06443313]
[1610241333982,6.50589,1314.9,1314.3,57.2749]
[1610241334782,2.4963,1314.9,1314.3,57.2749]
[1610241335183,2.4963,1314.9,1314.8,4.00959]
[1610241336683,4.00959,1315.7,1314.8,4.00959]
[1610241337287,4.00959,1314.9,1314.3,57.2749]
[1610241337486,2.1654,1314.9,1314.3,57.2749]
[1610241339290,4.00959,1314.7,1314.4,4.00959]
[1610241339489,2.1654,1314.9,1314.4,4.00959]
[1610241341190,2.1654,1314.9,1314.3,57.2749]
[1610241341390,2.1654,1314.9,1314.0,2.06528684]
[1610241342692,5.986,1316.8,1314.0,2.06528684]
[1610241342891,5.986,1316.8,1313.9,2.06645722]
[1610241342892,2.4702,1314.9,1313.9,2.06645722]
[1610241343293,4.00959,1314.7,1314.1,4.00959]
[1610241343495,4.00959,1314.7,1314.5,1.24005125]
[1610241344493,4.00959,1314.7,1314.6,1.23993634]
[1610241345097,4.00959,1314.7,1314.5,1.2409514]
[1610241347497,4.00959,1314.7,1314.6,1.03525922]
[1610241348599,4.00959,1314.7,1314.4,1.24211048]
[1610241348800,4.00959,1314.7,1314.6,1.0353826]
[1610241349698,4.00959,1314.7,1314.6,0.82797909]
[1610241352597,4.00959,1314.7,1314.4,1.03484353]
[1610241352598,4.00959,1314.7,1314.5,0.62142029]
[1610241352998,4.00959,1314.7,1314.6,0.41425745]
[1610241353199,4.00959,1314.7,1314.4,0.62138617]
[1610241354301,4.00959,1314.7,1314.6,0.2072037]
[1610241354701,4.00959,1314.7,1314.4,0.62138617]
[1610241354900,4.00959,1314.7,1314.3,0.62164665]
[1610241355301,4.00959,1314.4,1314.3,0.62164665]
[1610241356103,5.93239,1314.4,1314.3,0.62164665]
[1610241356805,5.93239,1314.4,1314.2,0.62136445]
[1610241357506,5.93239,1314.4,1314.3,0.62111392]
[1610241357706,1.9228,1314.4,1314.3,0.62111392]
[1610241357906,1.9228,1314.4,1314.3,0.82755026]
[1610241358106,1.9228,1314.4,1314.1,1.23980491]
[1610241358505,1.9228,1314.4,1314.2,1.23950793]
[1610241359107,1.9228,1314.4,1313.7,5.47027433]
[1610241359108,1.9228,1314.4,1314.3,1.23863186]
[1610241359305,1.9228,1314.4,1314.3,5.24822186]
[1610241359506,1.9228,1314.4,1314.3,4.00959]
[1610241360107,1.9228,1314.4,1314.3,5.65849953]
[1610241360606,1.9228,1314.4,1314.3,1.64890953]
[1610241361210,4.00959,1314.4,1314.2,1.65002736]
[1610241361410,5.69659,1314.4,1314.2,1.65002736]
[1610241361810,5.69659,1314.4,1314.1,64.29545109]
[1610241362210,5.69659,1314.4,1314.3,1.03329993]
[1610241363813,1.687,1314.4,1314.3,1.03329993]
[1610241364312,1.687,1314.4,1314.1,63.88415992]
[1610241364313,1.687,1314.4,1314.2,1.24022618]
[1610241365314,1.687,1314.4,1314.3,4.00959]
[1610241366316,4.00959,1314.6,1314.3,4.00959]
[1610241366918,2.4702,1314.9,1314.5,1.03158639]
[1610241367119,5.986,1316.8,1314.5,1.03158639]
[1610241367320,5.986,1316.8,1314.3,4.00959]
[1610241367321,4.00959,1315.6,1315.0,3.00959]
[1610241367518,6.29849,1315.6,1315.5,0.20583206]
[1610241368719,6.29849,1315.6,1315.4,0.41166381]
[1610241369718,6.29849,1315.6,1315.5,0.41155929]
[1610241373425,6.29849,1315.6,1315.5,4.42114929]
[1610241373626,6.29849,1315.6,1315.5,4.00959]
[1610241373825,6.29849,1315.6,1315.5,4.62575569]
[1610241374227,2.2889,1315.6,1315.5,4.62575569]
[1610241374428,5.6525,1318.1,1315.5,4.62575569]
[1610241374627,5.6525,1318.1,1315.5,5.0347227]
[1610241375028,5.6525,1318.1,1316.0,0.22842615]
[1610241375430,4.00959,1316.1,1316.0,0.22842615]
[1610241375629,5.86329,1316.1,1316.0,0.22842615]
[1610241376030,5.86329,1316.1,1315.8,0.81828316]
[1610241377432,4.00959,1315.9,1315.7,0.8170841]
[1610241378730,4.00959,1315.9,1315.7,1.02057073]
[1610241380483,4.00959,1315.9,1315.8,4.00959]
[1610241380489,1.8537,1316.1,1315.8,4.00959]
[1610241380505,1.8537,1316.1,1316.0,1.01952779]
[1610241380568,1.8537,1316.1,1315.8,5.23302334]
[1610241380730,2.0791,1316.1,1315.9,9.00959]
[1610241381231,2.0791,1316.1,1315.9,10.23220146]
[1610241381431,2.0791,1316.1,1316.0,4.00959]
[1610241381631,2.0791,1316.1,1316.0,13.01918]
[1610241381831,2.0791,1316.1,1316.0,14.2412725]
[1610241383639,2.0791,1316.1,1316.0,13.01918]
[1610241384838,2.0791,1316.1,1316.0,4.00959]
[1610241385037,2.0791,1316.1,1316.0,13.01918]
[1610241385842,4.00959,1316.8,1316.0,13.01918]
[1610241386440,4.00959,1316.8,1316.6,0.81309758]
[1610241386641,4.00959,1316.8,1316.7,1.01506191]
[1610241387143,4.00959,1316.8,1316.5,1.2176409]
[1610241387340,6.42659,1316.8,1316.7,4.00959]
[1610241387539,6.42659,1316.8,1316.7,5.02431409]
[1610241388341,6.42659,1316.8,1316.7,4.00959]
[1610241388642,6.42659,1316.8,1316.7,4.82196425]
[1610241389042,6.42659,1316.8,1316.7,4.00959]
[1610241389643,6.42659,1316.8,1316.7,5.02573326]
[1610241389846,2.417,1316.8,1316.7,14.03532326]
[1610241390044,2.417,1316.8,1316.7,13.01918]
[1610241390844,2.417,1316.8,1316.7,4.00959]
[1610241391646,2.417,1316.8,1316.7,5.02700304]
[1610241392448,2.4822,1316.8,1316.7,5.02700304]
[1610241393050,2.4822,1316.8,1316.7,4.00959]
[1610241395651,2.4822,1316.8,1316.7,13.01918]
[1610241395851,2.4822,1316.8,1316.7,14.23742464]
[1610241396255,2.4822,1316.8,1316.7,13.01918]
[1610241396656,2.4822,1316.8,1316.7,9.00959]
[1610241396857,2.4822,1316.8,1316.7,10.6312508]
[1610241397255,2.4822,1316.8,1316.7,9.00959]
[1610241397455,2.4822,1316.8,1316.7,13.01918]
[1610241397656,2.0621,1316.9,1316.7,13.01918]
[1610241398355,2.0621,1316.9,1316.7,15.04405194]
[1610241398756,4.00959,1318.1,1316.7,15.04405194]
[1610241398955,4.00959,1318.1,1316.7,13.01918]
[1610241399256,4.00959,1318.1,1317.6,0.01186857]
[1610241399455,4.00959,1317.7,1317.6,0.01186857]
[1610241399654,6.24819,1317.7,1317.6,0.01186857]
[1610241399857,6.24819,1317.7,1317.3,1.01186857]
[1610241399858,6.24819,1317.7,1317.4,0.80997407]
[1610241401558,6.24819,1317.7,1317.4,4.81956407]
[1610241403061,2.2386,1317.7,1317.4,4.81956407]
[1610241403261,2.2386,1317.7,1317.5,0.80936231]
[1610241403462,2.2386,1317.7,1317.6,4.00959]
[1610241403662,2.2386,1317.7,1317.6,4.81884856]
[1610241404863,4.00959,1318.3,1317.6,4.81884856]
[1610241405263,4.00959,1318.3,1317.9,0.2022915]
[1610241405465,4.00959,1318.0,1317.9,0.2022915]
[1610241405664,6.10299,1318.0,1317.6,4.81884856]
[1610241406364,6.10299,1318.0,1317.5,0.80916325]
[1610241407368,6.10299,1318.0,1317.4,0.81121877]
[1610241407567,4.00959,1317.5,1317.4,0.81121877]
[1610241407768,5.62889,1317.5,1317.3,0.81240356]
[1610241408168,5.62889,1317.5,1317.2,0.81328687]
[1610241408368,5.62889,1317.5,1317.1,0.81344631]
[1610241408869,5.62889,1317.5,1317.2,0.81412118]
[1610241409170,5.62889,1317.5,1317.1,0.81509919]
[1610241409572,4.00959,1317.2,1317.1,0.81509919]
[1610241409773,6.21689,1317.2,1317.1,0.81509919]
[1610241409971,6.21689,1317.2,1317.0,1.01660859]
[1610241409972,6.21689,1317.2,1317.0,0.81598247]
[1610241410474,2.2073,1317.2,1317.0,0.81598247]
[1610241410871,2.2073,1317.2,1317.1,0.61156146]
[1610241411172,2.2073,1317.2,1317.0,1.22004147]
[1610241411572,2.2073,1317.2,1317.1,4.00959]
[1610241412173,2.2073,1317.2,1317.1,13.01918]
[1610241412574,2.2073,1317.2,1317.1,14.2388679]
[1610241413276,2.2073,1317.2,1317.1,4.00959]
[1610241414775,1.6193,1317.5,1317.1,4.00959]
[1610241414975,2.0934,1318.0,1317.1,4.00959]
[1610241415175,4.00959,1318.1,1317.1,4.00959]
[1610241415375,4.00959,1318.1,1317.9,0.40606198]
[1610241415577,4.00959,1318.3,1318.0,3.21185753]
[1610241415975,4.00959,1318.3,1318.1,0.20285952]
[1610241417478,4.00959,1318.3,1318.0,0.20298722]
[1610241417678,4.00959,1318.1,1318.0,0.20298722]
[1610241418080,4.00959,1318.1,1317.9,0.20291697]
[1610241419581,4.00959,1318.1,1317.9,4.21250697]
[1610241419880,4.00959,1318.1,1318.0,0.20261748]
[1610241420280,4.00959,1318.1,1317.9,4.41452447]
[1610241420980,4.00959,1318.1,1318.0,0.40480225]
[1610241421280,2.5919,1318.3,1318.0,0.40480225]
[1610241421680,2.5919,1318.3,1318.2,0.20218119]
[1610241422379,2.5919,1318.3,1318.1,4.41376922]
[1610241422679,4.00959,1318.4,1318.2,0.40390468]
[1610241423081,4.00959,1318.4,1318.3,0.20194229]
[1610241423281,4.00959,1318.4,1318.2,0.40390468]
[1610241423680,6.49939,1318.4,1318.2,0.40390468]
[1610241423880,6.49939,1318.4,1318.3,0.40367085]
[1610241424585,6.49939,1318.4,1318.2,0.40346754]
[1610241424987,6.49939,1318.4,1318.3,0.40380081]
[1610241425587,6.49939,1318.4,1318.2,0.4039878]
[1610241426392,2.4898,1318.4,1318.2,0.4039878]
[1610241426589,2.4898,1318.4,1318.3,0.4039261]
[1610241427589,2.4898,1318.4,1318.3,4.61477657]
[1610241428091,2.4898,1318.4,1318.3,4.81618132]
[1610241428791,5.7165,1320.8,1318.3,4.81618132]
[1610241428992,5.7165,1320.8,1318.7,0.20159331]
[1610241429694,4.00959,1318.9,1318.8,0.20140226]
[1610241429893,4.00959,1318.9,1318.6,0.40318663]
[1610241431396,6.02949,1318.9,1318.6,0.40318663]
[1610241431595,6.02949,1318.9,1318.7,0.40264489]
[1610241431798,6.02949,1318.9,1318.7,4.41223489]
[1610241432198,6.02949,1318.9,1318.7,4.00959]
[1610241432498,6.02949,1318.9,1318.6,0.40273938]
[1610241433701,6.02949,1318.9,1318.7,4.00959]
[1610241433902,2.0199,1318.9,1318.7,4.00959]
[1610241434301,2.0199,1318.9,1318.7,4.4123726]
[1610241435905,2.0199,1318.9,1318.8,0.40251382]
[1610241436305,5.7165,1320.8,1318.7,4.61336073]
[1610241436504,5.7165,1320.8,1318.8,0.80451186]
[1610241437004,5.7165,1320.8,1319.1,0.60291216]
[1610241437204,5.7165,1320.8,1319.2,0.60300919]
[1610241437605,5.7165,1320.8,1319.1,0.60340543]
[1610241437804,7.5956,1320.8,1319.4,4.00959]
[1610241438005,1.8791,1320.8,1319.4,13.01918]
[1610241438607,1.8791,1320.8,1319.6,0.60178793]
[1610241439007,1.8791,1320.8,1319.7,0.60155302]
[1610241439408,1.8791,1320.8,1319.8,0.60112653]
[1610241439609,1.8791,1320.8,1319.7,1.00127445]
[1610241440010,1.8791,1320.8,1320.3,0.20024939]
[1610241441010,1.8791,1320.8,1320.4,0.20006992]
[1610241441411,1.8791,1320.8,1320.6,0.19979845]
[1610241441610,1.8791,1320.8,1320.0,0.99899223]
[1610241441812,1.8791,1320.8,1320.7,4.00959]
[1610241442813,4.00959,1321.7,1320.7,4.00959]
[1610241443013,4.00959,1321.7,1320.4,0.99628092]
[1610241443213,6.04089,1321.7,1320.4,0.99628092]
[1610241443717,2.0313,1321.7,1320.9,4.00959]
[1610241443915,2.0313,1321.7,1320.2,0.99809067]
[1610241444116,2.0313,1321.7,1320.3,0.99845984]
[1610241444716,2.0313,1321.7,1319.5,1.20240578]
[1610241445117,2.0313,1321.7,1319.2,1.20352601]
[1610241445518,2.0313,1321.7,1319.0,1.20496756]
[1610241445718,2.0313,1321.7,1319.1,4.00959]
[1610241446719,2.0313,1321.7,1319.0,1.20498678]
[1610241447120,30.0,1321.6,1319.7,0.40155442]
[1610241447320,30.0,1321.6,1319.4,0.80310884]
[1610241447719,4.00959,1319.5,1319.0,1.20498678]
[1610241447920,4.00959,1319.5,1318.6,1.20723441]
[1610241448120,4.00959,1319.5,1318.4,1.2084042]
[1610241448520,4.00959,1319.5,1318.2,3.405]
[1610241448720,4.00959,1319.5,1318.0,1.21045768]
[1610241448924,4.00959,1319.5,1317.9,1.21069704]
[1610241449122,5.98319,1319.5,1317.9,1.21069704]
[1610241449321,5.98319,1319.5,1317.5,1.21267628]
[1610241449721,4.00959,1317.6,1317.5,1.21267628]
[1610241449920,6.53969,1317.6,1317.4,1.21316083]
[1610241451425,6.53969,1317.6,1317.5,1.21151054]
[1610241451825,6.53969,1317.6,1317.1,1.61616372]
[1610241452225,6.53969,1317.6,1317.0,1.61668741]
[1610241452426,6.53969,1317.6,1316.9,5.02179206]
[1610241452825,6.53969,1317.6,1316.9,3.405]
[1610241453228,6.53969,1317.6,1317.5,0.60693362]
[1610241453628,6.53969,1317.6,1316.9,3.405]
[1610241453828,4.00959,1317.0,1316.9,3.405]
[1610241454030,6.16969,1317.0,1316.9,3.405]
[1610241455027,6.16969,1317.0,1316.3,1.62399806]
[1610241455028,2.1601,1317.0,1316.3,1.62399806]
[1610241455428,2.1601,1317.0,1316.4,1.62322962]
[1610241455628,2.1601,1317.0,1316.6,1.62017387]
[1610241455828,2.1601,1317.0,1316.9,4.00959]
[1610241456430,2.1601,1317.0,1316.8,1.6184642]
[1610241456628,2.1601,1317.0,1315.8,50.0062]
[1610241456629,2.1601,1317.0,1316.7,1.61970096]
[1610241456929,2.1601,1317.0,1316.6,1.620457]
[1610241457834,4.00959,1316.7,1316.6,1.620457]
[1610241458029,4.00959,1316.7,1316.4,1.62231661]
[1610241458030,6.61369,1316.7,1316.4,1.62231661]
[1610241459031,6.61369,1316.7,1316.3,1.62187005]
[1610241459833,6.61369,1316.7,1315.8,50.0062]
[1610241459834,4.00959,1316.4,1316.1,1.62380977]
[1610241460031,6.21379,1316.4,1316.1,1.62380977]
[1610241460232,6.21379,1316.4,1315.8,51.63171722]
[1610241460433,6.21379,1316.4,1315.8,50.0062]
[1610241460832,6.21379,1316.4,1316.3,0.81328814]
[1610241461032,6.21379,1316.4,1315.8,50.0062]
[1610241461734,4.00959,1315.9,1315.8,50.0062]
[1610241461933,5.93439,1315.9,1315.8,50.0062]
[1610241462331,5.93439,1315.9,1315.8,51.63170034]
[1610241462733,5.93439,1315.9,1315.8,50.0062]
[1610241463135,5.93439,1315.9,1315.8,51.6313751]
[1610241463335,1.9248,1315.9,1315.8,51.6313751]
[1610241463534,1.9248,1315.9,1315.8,1.6251751]
[1610241463734,1.9248,1315.9,1315.8,4.00959]
[1610241464236,1.9248,1315.9,1315.6,2.03012886]
[1610241464435,1.9248,1315.9,1315.7,2.02918041]
[1610241465034,1.9248,1315.9,1315.8,2.02819666]
[1610241465435,1.9248,1315.9,1315.7,2.43150647]
[1610241465839,1.9248,1315.9,1315.8,4.00959]
[1610241466240,1.9248,1315.9,1315.6,2.83290794]
[1610241466439,1.9248,1315.9,1315.8,2.43056589]
[1610241466639,1.9248,1315.9,1315.6,2.43278709]
[1610241466840,2.2042,1316.4,1315.6,2.43278709]
[1610241467041,6.61369,1316.7,1315.8,2.02845866]
[1610241467340,6.61369,1316.7,1316.5,1.01459466]
[1610241467741,6.61369,1316.7,1316.2,1.21791156]
[1610241468141,6.61369,1316.7,1316.6,0.40699122]
[1610241468944,6.61369,1316.7,1316.5,0.61048683]
[1610241469144,6.61369,1316.7,1316.0,1.22299816]
[1610241469845,4.00959,1316.1,1316.0,1.22299816]
[1610241470146,6.47419,1316.1,1316.0,1.22299816]
[1610241471446,6.47419,1316.1,1315.8,1.63242156]
[1610241471846,4.00959,1315.9,1315.8,1.63242156]
[1610241473146,4.00959,1315.9,1315.7,1.63320754]
[1610241473845,4.00959,1315.9,1314.8,65.04206337]
[1610241473846,4.00959,1315.9,1315.6,1.63264089]
[1610241474046,4.00959,1315.9,1315.8,1.22479023]
[1610241474747,4.00959,1315.9,1315.5,1.63305364]
[1610241474748,4.00959,1315.9,1315.7,1.22534824]
[1610241475547,4.00959,1315.9,1315.5,1.22682365]
[1610241475748,4.00959,1315.6,1315.3,1.22826462]
[1610241476349,4.00959,1315.6,1314.9,1.63651988]
[1610241476548,4.00959,1315.6,1315.3,0.81939589]
[1610241476747,4.00959,1315.6,1314.8,62.183]
[1610241476949,29.79506186,1315.5,1315.4,0.40987628]
[1610241477149,29.79506186,1315.5,1315.1,0.41039873]
[1610241477550,29.79506186,1315.5,1314.8,62.183]
[1610241477750,4.00959,1314.9,1314.8,62.183]
[1610241477954,59.7102,1314.8,1314.4,0.41203049]
[1610241478152,29.79506186,1314.7,1314.1,0.41266275]
[1610241478552,29.79506186,1314.7,1313.5,1.03332996]
[1610241478952,29.79506186,1314.7,1313.2,1.03468603]
[1610241479152,62.3145,1314.8,1313.3,1.03472593]
[1610241479554,62.3145,1314.8,1313.7,0.62058362]
[1610241479754,4.00959,1313.8,1313.7,0.62058362]
[1610241479955,5.73449,1313.8,1313.7,0.62058362]
[1610241480958,5.73449,1313.8,1313.6,1.03601922]
[1610241481560,5.73449,1313.8,1313.7,1.03540321]
[1610241481758,4.00959,1314.2,1313.7,4.00959]
[1610241481960,4.00959,1314.2,1313.4,3.60076044]
[1610241482160,4.00959,1314.2,1314.1,1.03340884]
[1610241482560,4.00959,1314.2,1313.7,1.65284728]
[1610241482758,4.00959,1314.2,1313.8,1.65176352]
[1610241482957,2.6043,1314.8,1313.8,1.65176352]
[1610241483159,2.2341,1315.6,1314.0,1.65047766]
[1610241483361,5.9494,1316.0,1314.0,1.65047766]
[1610241483562,5.9494,1316.0,1314.7,1.03041325]
[1610241483760,4.00959,1315.0,1314.7,1.03041325]
[1610241483960,5.85589,1315.0,1314.8,1.02984895]
[1610241484160,1.8463,1315.0,1314.8,1.02984895]
[1610241484359,1.8463,1315.0,1314.0,5.46469789]
[1610241484360,1.8463,1315.0,1314.9,1.02949033]
[1610241484960,1.8463,1315.0,1314.4,1.64718453]
[1610241485360,1.8463,1315.0,1314.5,1.64574784]
[1610241485760,1.8463,1315.0,1314.6,4.00959]
[1610241486160,1.8463,1315.0,1314.8,1.23409647]
[1610241486360,1.8463,1315.0,1314.9,1.23379619]
[1610241487165,4.00959,1315.2,1314.8,1.64297687]
[1610241487562,43.1797,1316.7,1314.9,1.64313179]
[1610241487764,4.00959,1315.9,1315.3,4.00959]
[1610241487964,6.14809,1315.9,1315.3,4.00959]
[1610241488362,6.14809,1315.9,1315.8,0.61593721]
[1610241489063,6.14809,1315.9,1315.7,0.82080337]
[1610241489263,6.14809,1315.9,1315.8,0.61586438]
[1610241490565,6.14809,1315.9,1315.7,0.61590913]
[1610241490867,6.14809,1315.9,1315.8,0.61587661]
[1610241491966,6.14809,1315.9,1315.8,0.820777]
[1610241492769,6.14809,1315.9,1315.8,1.02548862]
[1610241493769,6.14809,1315.9,1315.7,5.2391795]
[1610241495168,6.14809,1315.9,1315.7,1.2295895]
[1610241498172,6.14809,1315.9,1315.8,1.22753206]
[1610241500774,6.14809,1315.9,1315.6,5.64676395]
[1610241501977,6.14809,1315.9,1315.7,1.63966825]
[1610241503277,6.14809,1315.9,1315.6,5.64975862]
[1610241503881,6.14809,1315.9,1315.6,1.64016862]
[1610241504277,6.14809,1315.9,1315.8,1.23102777]
[1610241505577,6.14809,1315.9,1315.6,1.64108182]
[1610241505778,25.14809,1315.9,1315.6,1.64108182]
[1610241505978,25.14809,1315.9,1315.8,5.64846692]
[1610241506278,25.14809,1315.9,1315.8,4.00959]
[1610241506680,25.14809,1315.9,1315.8,5.64798077]
[1610241507682,25.14809,1315.9,1315.8,4.00959]
[1610241507985,25.14809,1315.9,1315.8,5.64766237]
[1610241508583,25.14809,1315.9,1315.8,1.63807237]
[1610241508783,25.14809,1315.9,1315.7,1.63835603]
[1610241509086,25.14809,1315.9,1315.8,1.22955218]
[1610241509485,25.14809,1315.9,1315.6,1.2307722]
[1610241509887,21.1385,1315.9,1315.8,0.82142924]
[1610241510285,21.1385,1315.9,1315.7,0.41146068]
[1610241510685,21.1385,1315.9,1315.6,0.20604456]
[1610241510885,21.1385,1315.9,1315.4,0.20622695]
[1610241511686,21.1385,1315.9,1315.5,0.20610716]
[1610241511887,4.00959,1315.6,1315.5,0.20610716]
[1610241512086,4.00959,1315.6,1315.4,0.41221433]
[1610241512286,5.89599,1315.6,1315.4,0.41221433]
[1610241512486,5.89599,1315.6,1315.5,0.41191338]
[1610241512689,5.89599,1315.6,1315.5,0.20604219]
[1610241513087,5.89599,1315.6,1315.5,0.41183389]
[1610241513289,5.89599,1315.6,1315.5,0.61750634]
[1610241514089,5.89599,1315.6,1315.5,0.41194562]
[1610241514491,5.89599,1315.6,1315.4,0.20622409]
[1610241514689,5.89599,1315.6,1314.9,0.61935814]
[1610241515095,5.89599,1315.6,1314.7,0.61998847]
[1610241515493,5.89599,1315.6,1314.6,0.62044664]
[1610241515692,5.89599,1315.6,1314.3,0.62135792]
[1610241515893,4.00959,1314.4,1314.1,1.03559653]
[1610241516495,4.00959,1314.4,1314.2,1.03490216]
[1610241516895,4.00959,1314.4,1314.1,1.24085946]
[1610241517095,4.00959,1314.4,1314.2,1.24040062]
[1610241517294,5.72839,1314.4,1314.2,1.24040062]
[1610241517696,5.72839,1314.4,1314.1,1.65228082]
[1610241517894,4.00959,1314.2,1314.1,1.65228082]
[1610241518093,4.00959,1314.2,1314.1,1.24086175]
[1610241520098,4.00959,1314.2,1314.0,1.24146157]
[1610241520298,4.00959,1314.2,1313.9,1.24218598]
[1610241520698,4.00959,1314.2,1314.1,1.03581498]
[1610241521099,4.00959,1314.2,1313.9,1.03657313]
[1610241521499,4.00959,1314.2,1314.0,1.03638377]
[1610241522700,4.00959,1314.2,1314.1,1.03621963]
[1610241522901,1.7188,1314.4,1314.1,1.03621963]
[1610241523100,5.8485,1315.5,1313.9,1.24239108]
[1610241523299,5.8485,1315.5,1314.3,1.03454826]
[1610241523702,5.8485,1315.5,1314.4,1.03398553]
[1610241523902,4.00959,1314.5,1314.4,1.03398553]
[1610241524103,6.24429,1314.5,1314.4,1.03398553]
[1610241524703,6.24429,1314.5,1313.3,2.48205903]
[1610241524704,6.24429,1314.5,1314.3,1.03492127]
[1610241525103,6.24429,1314.5,1314.2,1.03530219]
[1610241525903,4.00959,1314.3,1314.2,1.03530219]
[1610241526104,4.00959,1314.3,1314.1,1.0354361]
[1610241526405,4.00959,1314.3,1314.2,0.82857873]
[1610241526705,4.00959,1314.3,1314.1,0.82884242]
[1610241527110,4.00959,1314.3,1314.2,0.62119059]
[1610241527507,4.00959,1314.3,1314.1,0.82884242]
[1610241527706,4.00959,1314.3,1314.2,0.82686252]
[1610241528507,4.00959,1314.3,1314.2,1.03282189]
[1610241528708,4.00959,1314.3,1314.1,1.23838866]
[1610241529509,4.00959,1314.3,1314.0,1.23846179]
[1610241530111,4.00959,1314.1,1314.0,1.23846179]
[1610241530310,6.20869,1314.1,1313.9,1.23956071]
[1610241530710,6.20869,1314.1,1314.0,1.03366378]
[1610241530911,6.20869,1314.1,1313.9,1.03407972]
[1610241531311,6.20869,1314.1,1314.0,0.62121226]
[1610241531512,6.20869,1314.1,1313.8,1.03535376]
[1610241531711,6.20869,1314.1,1313.7,1.035888]
[1610241532012,4.00959,1313.8,1313.7,1.035888]
[1610241532715,4.00959,1313.8,1313.5,1.24219996]
[1610241532913,5.75419,1313.8,1313.5,1.24219996]
[1610241533913,5.75419,1313.8,1313.6,1.24143408]
[1610241534114,5.75419,1313.8,1313.5,1.24181341]
[1610241534514,5.75419,1313.8,1313.6,1.03552761]
[1610241535116,5.75419,1313.8,1313.5,1.03647994]
[1610241535316,5.75419,1313.8,1313.2,1.24377593]
[1610241535516,5.75419,1313.8,1313.6,1.03666536]
[1610241536420,5.75419,1313.8,1313.5,1.03716628]
[1610241537719,5.75419,1313.8,1313.5,1.24402551]
[1610241538019,1.7446,1313.8,1313.6,1.24394313]
[1610241538222,2.1991,1314.1,1313.6,1.24394313]
[1610241538422,2.2347,1314.5,1313.6,1.24394313]
[1610241538623,60.2954,1315.3,1313.8,1.0366549]
[1610241538823,30.0,1315.2,1313.8,1.0366549]
[1610241539023,30.0,1315.2,1314.3,0.20734734]
[1610241539224,32.4913,1315.2,1314.3,0.20734734]
[1610241539725,2.4913,1315.2,1314.5,0.20724374]
[1610241539924,32.4913,1315.2,1314.5,0.20724374]
[1610241540124,4.00959,1314.6,1314.5,0.20724374]
[1610241540324,5.92359,1314.6,1314.3,0.20744672]
[1610241540525,35.92359,1314.6,1313.8,1.03723362]
[1610241540724,35.92359,1314.6,1313.7,1.03774658]
[1610241541525,35.92359,1314.6,1313.5,1.03862016]
[1610241541726,35.92359,1314.6,1313.6,0.62347888]
[1610241542125,4.00959,1313.7,1313.5,0.62316864]
[1610241542325,5.93349,1313.7,1313.5,0.62316864]
[1610241542525,35.93349,1313.7,1313.5,0.62316864]
[1610241542724,35.93349,1313.7,1313.3,1.0386144]
[1610241542926,35.93349,1313.7,1313.2,0.83089097]
[1610241543325,35.93349,1313.7,1312.7,1.04015749]